Workbook

Sheet Οδηγός
B2: ΤΑΜΕΙΑΚΗ ΡΟΗ ΓΙΑ ΠΡΟΣΩΠΙΚΗ ΧΡΗΣΗ
B3: Αυτό το βιβλίο εργασίας διαθέτει ετήσια, μηνιαία και ημερήσια φύλλα εργασίας ταμειακών ροών. Επιλέξτε τον τύπο ταμειακής ροής που λειτουργεί καλύτερα για εσάς ή χρησιμοποιήστε τους όλους για να αποκτήσετε μια εικόνα για την προσωπική σας ταμειακή ροή.
B5: Ημερήσια ταμειακή ροή | E5: Μηνιαία ταμειακή ροή | H5: Ετήσια ταμειακή ροή
B7: Καταχωρήστε ένα εκτιμώμενο ποσό ταμειακής ροής για κάθε ημέρα και εξετάστε τα εκτιμώμενα μηνιαία και ετήσια σύνολα. Χρησιμοποιήστε το για να πάρετε μια εικόνα των καθημερινών σας συνηθειών όσον αφορά τις δαπάνες κατά τη διάρκεια ενός μήνα ή ενός έτους. | E7: Καταχωρήστε τη μηνιαία ταμειακή ροή που έχετε κάθε μήνα ή υπολογίστε τους υπόλοιπους μήνες για να δείτε την προβλεπόμενη ταμειακή ροή για κάθε μήνα του έτους. | H7: Εισαγάγετε ένα ετήσιο ποσό ταμειακής ροής σε τέσσερα φύλλα εργασίας: Έσοδα, έξοδα, διακριτικές και αποταμιεύσεις. Δείτε την μηνιαία κατανομή και τον τρόπο σύγκρισης όλων και, κυρίως, ποιο είναι το κέρδος σας τόσο σε ετήσια όσο και σε μηνιαία βάση.

Sheet Ημερήσια ταμειακή ροή
B1: ΤΑΜΕΙΑΚΗ ΡΟΗ ΓΙΑ ΠΡΟΣΩΠΙΚΗ ΧΡΗΣΗ
C2: Συνολικά διαθέσιμα μετρητά: | D2: =ΗμερήσιαΤαμειακήΡοή -> 577.84 € | F2: ΣΗΜΕΙΩΣΗ: Εάν θέλετε να προσθέσετε ημερήσια στοιχεία, υπολογίστε το μηνιαίο ποσό/αξία τους και τοποθετήστε την αξία στην κατάλληλη στήλη μήνα.
B4: ΗΜΕΡΗΣΙΑ ΣΥΝΟΨΗ
B5: Σύνολα | C5: Ημερησίως | D5: Μηνιαία | E5: Ετήσια
B6: Έσοδα | C6: =SUMIF(Ημερήσια[Τύπος],$B6,Ημερήσια[Ημερησίως]) -> 342.47 € | D6: =SUMIF(Ημερήσια[Τύπος],$B6,Ημερήσια[Μηνιαία]) -> 10,416.80 € | E6: =SUMIF(Ημερήσια[Τύπος],$B6,Ημερήσια[Ετήσια]) -> 125,001.55 €
B7: Έξοδα | C7: =SUMIF(Ημερήσια[Τύπος],$B7,Ημερήσια[Ημερησίως]) -> 136.06 € | D7: =SUMIF(Ημερήσια[Τύπος],$B7,Ημερήσια[Μηνιαία]) -> 4,138.49 € | E7: =SUMIF(Ημερήσια[Τύπος],$B7,Ημερήσια[Ετήσια]) -> 49,661.90 €
B8: Διακριτικά | C8: =SUMIF(Ημερήσια[Τύπος],$B8,Ημερήσια[Ημερησίως]) -> 36.29 € | D8: =SUMIF(Ημερήσια[Τύπος],$B8,Ημερήσια[Μηνιαία]) -> 1,103.82 € | E8: =SUMIF(Ημερήσια[Τύπος],$B8,Ημερήσια[Ετήσια]) -> 13,245.85 €
B9: Αποταμιεύσεις | C9: =SUMIF(Ημερήσια[Τύπος],$B9,Ημερήσια[Ημερησίως]) -> 63.02 € | D9: =SUMIF(Ημερήσια[Τύπος],$B9,Ημερήσια[Μηνιαία]) -> 1,916.86 € | E9: =SUMIF(Ημερήσια[Τύπος],$B9,Ημερήσια[Ετήσια]) -> 23,002.30 €
B11: Τύπος | C11: Περιγραφή | D11: Ημερησίως | E11: Μηνιαία | F11: Ετήσια
B12: Έσοδα | C12: Μισθός | D12: 246.58 € | E12: =Ημερήσια[[#This Row],[Ετήσια]]/12 -> 7,500.14 € | F12: =Ημερήσια[[#This Row],[Ημερησίως]]*365 -> 90,001.70 €
B13: Έσοδα | C13: Προμήθειες/μπόνους | D13: 13.70 € | E13: =Ημερήσια[[#This Row],[Ετήσια]]/12 -> 416.71 € | F13: =Ημερήσια[[#This Row],[Ημερησίως]]*365 -> 5,000.50 €
B14: Έσοδα | C14: Άλλα 1 | D14: 82.19 € | E14: =Ημερήσια[[#This Row],[Ετήσια]]/12 -> 2,499.95 € | F14: =Ημερήσια[[#This Row],[Ημερησίως]]*365 -> 29,999.35 €
B15: Έσοδα | C15: Άλλα 2 | D15: 0.00 € | E15: =Ημερήσια[[#This Row],[Ετήσια]]/12 -> 0.00 € | F15: =Ημερήσια[[#This Row],[Ημερησίως]]*365 -> 0.00 €
B16: Έσοδα | C16: Άλλα 3 | D16: 0.00 € | E16: =Ημερήσια[[#This Row],[Ετήσια]]/12 -> 0.00 € | F16: =Ημερήσια[[#This Row],[Ημερησίως]]*365 -> 0.00 €
B17: Έσοδα | C17: Άλλα 4 | D17: 0.00 € | E17: =Ημερήσια[[#This Row],[Ετήσια]]/12 -> 0.00 € | F17: =Ημερήσια[[#This Row],[Ημερησίως]]*365 -> 0.00 €
B18: Έξοδα | C18: Ιατροφαρμακευτική περίθαλψη | D18: 41.10 € | E18: =Ημερήσια[[#This Row],[Ετήσια]]/12 -> 1,250.13 € | F18: =Ημερήσια[[#This Row],[Ημερησίως]]*365 -> 15,001.50 €
B19: Έξοδα | C19: Φόρος εισοδήματος | D19: 6.85 € | E19: =Ημερήσια[[#This Row],[Ετήσια]]/12 -> 208.35 € | F19: =Ημερήσια[[#This Row],[Ημερησίως]]*365 -> 2,500.25 €
B20: Έξοδα | C20: Φόρος/Τέλη οχημάτων | D20: 0.55 € | E20: =Ημερήσια[[#This Row],[Ετήσια]]/12 -> 16.73 € | F20: =Ημερήσια[[#This Row],[Ημερησίως]]*365 -> 200.75 €
B21: Έξοδα | C21: Δόσεις οχήματος | D21: 10.96 € | E21: =Ημερήσια[[#This Row],[Ετήσια]]/12 -> 333.37 € | F21: =Ημερήσια[[#This Row],[Ημερησίως]]*365 -> 4,000.40 €
B22: Έξοδα | C22: Στεγαστικό/Ενοίκιο | D22: 41.10 € | E22: =Ημερήσια[[#This Row],[Ετήσια]]/12 -> 1,250.13 € | F22: =Ημερήσια[[#This Row],[Ημερησίως]]*365 -> 15,001.50 €
B23: Έξοδα | C23: Ασφάλεια | D23: 0.68 € | E23: =Ημερήσια[[#This Row],[Ετήσια]]/12 -> 20.68 € | F23: =Ημερήσια[[#This Row],[Ημερησίως]]*365 -> 248.20 €
B24: Έξοδα | C24: Ηλεκτρικό | D24: 3.29 € | E24: =Ημερήσια[[#This Row],[Ετήσια]]/12 -> 100.07 € | F24: =Ημερήσια[[#This Row],[Ημερησίως]]*365 -> 1,200.85 €
B25: Έξοδα | C25: Αέριο | D25: 1.64 € | E25: =Ημερήσια[[#This Row],[Ετήσια]]/12 -> 49.88 € | F25: =Ημερήσια[[#This Row],[Ημερησίως]]*365 -> 598.60 €
B26: Έξοδα | C26: Νερό | D26: 1.64 € | E26: =Ημερήσια[[#This Row],[Ετήσια]]/12 -> 49.88 € | F26: =Ημερήσια[[#This Row],[Ημερησίως]]*365 -> 598.60 €
B27: Έξοδα | C27: Αποχέτευση | D27: 0.82 € | E27: =Ημερήσια[[#This Row],[Ετήσια]]/12 -> 24.94 € | F27: =Ημερήσια[[#This Row],[Ημερησίως]]*365 -> 299.30 €
B28: Έξοδα | C28: Απορρίμματα | D28: 0.41 € | E28: =Ημερήσια[[#This Row],[Ετήσια]]/12 -> 12.47 € | F28: =Ημερήσια[[#This Row],[Ημερησίως]]*365 -> 149.65 €
B29: Έξοδα | C29: Τηλέφωνο | D29: 1.64 € | E29: =Ημερήσια[[#This Row],[Ετήσια]]/12 -> 49.88 € | F29: =Ημερήσια[[#This Row],[Ημερησίως]]*365 -> 598.60 €
B30: Έξοδα | C30: Internet | D30: 1.64 € | E30: =Ημερήσια[[#This Row],[Ετήσια]]/12 -> 49.88 € | F30: =Ημερήσια[[#This Row],[Ημερησίως]]*365 -> 598.60 €
B31: Έξοδα | C31: Premium για άτομα με ειδικές ανάγκες | D31: 4.11 € | E31: =Ημερήσια[[#This Row],[Ετήσια]]/12 -> 125.01 € | F31: =Ημερήσια[[#This Row],[Ημερησίως]]*365 -> 1,500.15 €
B32: Έξοδα | C32: Τρόφιμα | D32: 13.70 € | E32: =Ημερήσια[[#This Row],[Ετήσια]]/12 -> 416.71 € | F32: =Ημερήσια[[#This Row],[Ημερησίως]]*365 -> 5,000.50 €
B33: Έξοδα | C33: Ρούχα | D33: 3.29 € | E33: =Ημερήσια[[#This Row],[Ετήσια]]/12 -> 100.07 € | F33: =Ημερήσια[[#This Row],[Ημερησίως]]*365 -> 1,200.85 €
B34: Έξοδα | C34: Ιατρικά/Οδοντιατρικά/Φάρμακα | D34: 1.64 € | E34: =Ημερήσια[[#This Row],[Ετήσια]]/12 -> 49.88 € | F34: =Ημερήσια[[#This Row],[Ημερησίως]]*365 -> 598.60 €
B35: Έξοδα | C35: Λεωφορείο | D35: 1.00 € | E35: =Ημερήσια[[#This Row],[Ετήσια]]/12 -> 30.42 € | F35: =Ημερήσια[[#This Row],[Ημερησίως]]*365 -> 365.00 €
B36: Έξοδα | C36: Άλλα 2 | D36: 0.00 € | E36: =Ημερήσια[[#This Row],[Ετήσια]]/12 -> 0.00 € | F36: =Ημερήσια[[#This Row],[Ημερησίως]]*365 -> 0.00 €
B37: Έξοδα | C37: Άλλα 3 | D37: 0.00 € | E37: =Ημερήσια[[#This Row],[Ετήσια]]/12 -> 0.00 € | F37: =Ημερήσια[[#This Row],[Ημερησίως]]*365 -> 0.00 €
B38: Έξοδα | C38: Άλλα 4 | D38: 0.00 € | E38: =Ημερήσια[[#This Row],[Ετήσια]]/12 -> 0.00 € | F38: =Ημερήσια[[#This Row],[Ημερησίως]]*365 -> 0.00 €
B39: Διακριτικά | C39: Εστιατόρια | D39: 3.29 € | E39: =Ημερήσια[[#This Row],[Ετήσια]]/12 -> 100.07 € | F39: =Ημερήσια[[#This Row],[Ημερησίως]]*365 -> 1,200.85 €
B40: Διακριτικά | C40: Δώρα | D40: 1.64 € | E40: =Ημερήσια[[#This Row],[Ετήσια]]/12 -> 49.88 € | F40: =Ημερήσια[[#This Row],[Ημερησίως]]*365 -> 598.60 €
B41: Διακριτικά | C41: Ταξίδια | D41: 6.16 € | E41: =Ημερήσια[[#This Row],[Ετήσια]]/12 -> 187.37 € | F41: =Ημερήσια[[#This Row],[Ημερησίως]]*365 -> 2,248.40 €
B42: Διακριτικά | C42: Διασκέδαση | D42: 3.29 € | E42: =Ημερήσια[[#This Row],[Ετήσια]]/12 -> 100.07 € | F42: =Ημερήσια[[#This Row],[Ημερησίως]]*365 -> 1,200.85 €
B43: Διακριτικά | C43: Προσωπική φροντίδα | D43: 0.82 € | E43: =Ημερήσια[[#This Row],[Ετήσια]]/12 -> 24.94 € | F43: =Ημερήσια[[#This Row],[Ημερησίως]]*365 -> 299.30 €
B44: Διακριτικά | C44: Αγορές | D44: 5.48 € | E44: =Ημερήσια[[#This Row],[Ετήσια]]/12 -> 166.68 € | F44: =Ημερήσια[[#This Row],[Ημερησίως]]*365 -> 2,000.20 €
B45: Διακριτικά | C45: Φιλανθρωπικές οργανώσεις | D45: 1.64 € | E45: =Ημερήσια[[#This Row],[Ετήσια]]/12 -> 49.88 € | F45: =Ημερήσια[[#This Row],[Ημερησίως]]*365 -> 598.60 €
B46: Διακριτικά | C46: Συμμετοχές σε λέσχες/συλλόγους | D46: 0.82 € | E46: =Ημερήσια[[#This Row],[Ετήσια]]/12 -> 24.94 € | F46: =Ημερήσια[[#This Row],[Ημερησίως]]*365 -> 299.30 €
B47: Διακριτικά | C47: Εργασίες ανακαίνισης σπιτιού | D47: 13.15 € | E47: =Ημερήσια[[#This Row],[Ετήσια]]/12 -> 399.98 € | F47: =Ημερήσια[[#This Row],[Ημερησίως]]*365 -> 4,799.75 €
B48: Διακριτικά | C48: Άλλα 1 | D48: 0.00 € | E48: =Ημερήσια[[#This Row],[Ετήσια]]/12 -> 0.00 € | F48: =Ημερήσια[[#This Row],[Ημερησίως]]*365 -> 0.00 €
B49: Διακριτικά | C49: Άλλα 2 | D49: 0.00 € | E49: =Ημερήσια[[#This Row],[Ετήσια]]/12 -> 0.00 € | F49: =Ημερήσια[[#This Row],[Ημερησίως]]*365 -> 0.00 €
B50: Αποταμιεύσεις | C50: Ταμειακά αποθέματα | D50: 13.70 € | E50: =Ημερήσια[[#This Row],[Ετήσια]]/12 -> 416.71 € | F50: =Ημερήσια[[#This Row],[Ημερησίως]]*365 -> 5,000.50 €
B51: Αποταμιεύσεις | C51: Συνταξιοδοτικό κ.λπ. | D51: 32.88 € | E51: =Ημερήσια[[#This Row],[Ετήσια]]/12 -> 1,000.10 € | F51: =Ημερήσια[[#This Row],[Ημερησίως]]*365 -> 12,001.20 €
B52: Αποταμιεύσεις | C52: Λογαριασμός ταμιευτηρίου | D52: 16.44 € | E52: =Ημερήσια[[#This Row],[Ετήσια]]/12 -> 500.05 € | F52: =Ημερήσια[[#This Row],[Ημερησίως]]*365 -> 6,000.60 €
B53: Αποταμιεύσεις | C53: Άλλα 1 | D53: 0.00 € | E53: =Ημερήσια[[#This Row],[Ετήσια]]/12 -> 0.00 € | F53: =Ημερήσια[[#This Row],[Ημερησίως]]*365 -> 0.00 €
B54: Αποταμιεύσεις | C54: Άλλα 2 | D54: 0.00 € | E54: =Ημερήσια[[#This Row],[Ετήσια]]/12 -> 0.00 € | F54: =Ημερήσια[[#This Row],[Ημερησίως]]*365 -> 0.00 €
B55: Άθροισμα | D55: =SUMIF(Ημερήσια[Τύπος],"Έσοδα",Ημερήσια[Ημερησίως])-SUMIF(Ημερήσια[Τύπος],"<>Έσοδα",Ημερήσια[Ημερησίως]) -> 107.10 € | E55: =SUMIF(Ημερήσια[Τύπος],"Έσοδα",Ημερήσια[Μηνιαία])-SUMIF(Ημερήσια[Τύπος],"<>Έσοδα",Ημερήσια[Μηνιαία]) -> 3,257.63 € | F55: =SUMIF(Ημερήσια[Τύπος],"Έσοδα",Ημερήσια[Ετήσια])-SUMIF(Ημερήσια[Τύπος],"<>Έσοδα",Ημερήσια[Ετήσια]) -> 39,091.50 €

Sheet Μηνιαία ταμειακή ροή
B1: ΤΑΜΕΙΑΚΗ ΡΟΗ ΓΙΑ ΠΡΟΣΩΠΙΚΗ ΧΡΗΣΗ
C2: Συνολική μηνιαία ταμειακή ροή: | D2: =ΜηνιαίαΤαμειακήΡοήΜέχριΣήμερα -> 18,380.00 € | F2: ΣΗΜΕΙΩΣΗ: Για τα ημερήσια στοιχεία, υπολογίστε το μηνιαίο ποσό/αξία και τοποθετήστε την αξία στην κατάλληλη στήλη μήνα.
B4: Τύπος | C4: Περιγραφή | D4: Ιαν | E4: Φεβ | F4: Μάρ | G4: Απρ | H4: Μάιος | I4: Ιούν | J4: Ιούλ | K4: Αύγ | L4: Σεπ | M4: Οκτ | N4: Νοέμ | O4: Δεκ | P4: Σύνολο
B5: Έσοδα | C5: Μισθός | D5: 7,500.00 € | E5: 7,500.00 € | F5: 7,500.00 € | G5: 7,500.00 € | H5: 7,500.00 € | I5: 7,500.00 € | P5: =SUM(Μηνιαία[[#This Row],[Ιαν]:[Δεκ]]) -> 45,000.00 €
B6: Έσοδα | C6: Προμήθειες/μπόνους | D6: 400.00 € | E6: 400.00 € | F6: 500.00 € | G6: 200.00 € | H6: 0.00 € | I6: 600.00 € | P6: =SUM(Μηνιαία[[#This Row],[Ιαν]:[Δεκ]]) -> 2,100.00 €
B7: Έσοδα | C7: Άλλα 1 | D7: 2,500.00 € | E7: 2,500.00 € | F7: 2,500.00 € | G7: 2,500.00 € | H7: 2,500.00 € | I7: 2,500.00 € | P7: =SUM(Μηνιαία[[#This Row],[Ιαν]:[Δεκ]]) -> 15,000.00 €
B8: Έσοδα | C8: Άλλα 2 | D8: 0.00 € | E8: 0.00 € | F8: 0.00 € | G8: 0.00 € | H8: 0.00 € | I8: 0.00 € | P8: =SUM(Μηνιαία[[#This Row],[Ιαν]:[Δεκ]]) -> 0.00 €
B9: Έσοδα | C9: Άλλα 3 | D9: 0.00 € | E9: 0.00 € | F9: 0.00 € | G9: 0.00 € | H9: 0.00 € | I9: 0.00 € | P9: =SUM(Μηνιαία[[#This Row],[Ιαν]:[Δεκ]]) -> 0.00 €
B10: Έσοδα | C10: Άλλα 4 | D10: 0.00 € | E10: 0.00 € | F10: 0.00 € | G10: 0.00 € | H10: 0.00 € | I10: 0.00 € | P10: =SUM(Μηνιαία[[#This Row],[Ιαν]:[Δεκ]]) -> 0.00 €
B11: Έξοδα | C11: Ιατροφαρμακευτική περίθαλψη | D11: 1,250.00 € | E11: 1,250.00 € | F11: 1,250.00 € | G11: 1,250.00 € | H11: 1,250.00 € | I11: 1,250.00 € | P11: =SUM(Μηνιαία[[#This Row],[Ιαν]:[Δεκ]]) -> 7,500.00 €
B12: Έξοδα | C12: Φόρος εισοδήματος | D12: 208.33 € | E12: 208.33 € | F12: 208.33 € | G12: 208.33 € | H12: 208.33 € | I12: 208.33 € | P12: =SUM(Μηνιαία[[#This Row],[Ιαν]:[Δεκ]]) -> 1,250.00 €
B13: Έξοδα | C13: Φόρος/Τέλη οχημάτων | D13: 16.67 € | E13: 16.67 € | F13: 16.67 € | G13: 16.67 € | H13: 16.67 € | I13: 16.67 € | P13: =SUM(Μηνιαία[[#This Row],[Ιαν]:[Δεκ]]) -> 100.00 €
B14: Έξοδα | C14: Δόσεις οχήματος | D14: 333.33 € | E14: 333.33 € | F14: 333.33 € | G14: 333.33 € | H14: 333.33 € | I14: 333.33 € | P14: =SUM(Μηνιαία[[#This Row],[Ιαν]:[Δεκ]]) -> 2,000.00 €
B15: Έξοδα | C15: Στεγαστικό/Ενοίκιο | D15: 1,250.00 € | E15: 1,250.00 € | F15: 1,250.00 € | G15: 1,250.00 € | H15: 1,250.00 € | I15: 1,250.00 € | P15: =SUM(Μηνιαία[[#This Row],[Ιαν]:[Δεκ]]) -> 7,500.00 €
B16: Έξοδα | C16: Ασφάλεια | D16: 25.00 € | E16: 25.00 € | F16: 25.00 € | G16: 25.00 € | H16: 25.00 € | I16: 25.00 € | P16: =SUM(Μηνιαία[[#This Row],[Ιαν]:[Δεκ]]) -> 150.00 €
B17: Έξοδα | C17: Ηλεκτρικό | D17: 100.00 € | E17: 100.00 € | F17: 100.00 € | G17: 100.00 € | H17: 100.00 € | I17: 100.00 € | P17: =SUM(Μηνιαία[[#This Row],[Ιαν]:[Δεκ]]) -> 600.00 €
B18: Έξοδα | C18: Αέριο | D18: 50.00 € | E18: 50.00 € | F18: 50.00 € | G18: 50.00 € | H18: 50.00 € | I18: 50.00 € | P18: =SUM(Μηνιαία[[#This Row],[Ιαν]:[Δεκ]]) -> 300.00 €
B19: Έξοδα | C19: Νερό | D19: 50.00 € | E19: 50.00 € | F19: 50.00 € | G19: 50.00 € | H19: 50.00 € | I19: 50.00 € | P19: =SUM(Μηνιαία[[#This Row],[Ιαν]:[Δεκ]]) -> 300.00 €
B20: Έξοδα | C20: Αποχέτευση | D20: 25.00 € | E20: 25.00 € | F20: 25.00 € | G20: 25.00 € | H20: 25.00 € | I20: 25.00 € | P20: =SUM(Μηνιαία[[#This Row],[Ιαν]:[Δεκ]]) -> 150.00 €
B21: Έξοδα | C21: Απορρίμματα | D21: 12.50 € | E21: 12.50 € | F21: 12.50 € | G21: 12.50 € | H21: 12.50 € | I21: 12.50 € | P21: =SUM(Μηνιαία[[#This Row],[Ιαν]:[Δεκ]]) -> 75.00 €
B22: Έξοδα | C22: Τηλέφωνο | D22: 50.00 € | E22: 50.00 € | F22: 50.00 € | G22: 50.00 € | H22: 50.00 € | I22: 50.00 € | P22: =SUM(Μηνιαία[[#This Row],[Ιαν]:[Δεκ]]) -> 300.00 €
B23: Έξοδα | C23: Internet | D23: 50.00 € | E23: 50.00 € | F23: 50.00 € | G23: 50.00 € | H23: 50.00 € | I23: 50.00 € | P23: =SUM(Μηνιαία[[#This Row],[Ιαν]:[Δεκ]]) -> 300.00 €
B24: Έξοδα | C24: Premium για άτομα με ειδικές ανάγκες | D24: 125.00 € | E24: 125.00 € | F24: 125.00 € | G24: 125.00 € | H24: 125.00 € | I24: 125.00 € | P24: =SUM(Μηνιαία[[#This Row],[Ιαν]:[Δεκ]]) -> 750.00 €
B25: Έξοδα | C25: Τρόφιμα | D25: 400.00 € | E25: 500.00 € | F25: 450.00 € | G25: 400.00 € | H25: 450.00 € | I25: 425.00 € | P25: =SUM(Μηνιαία[[#This Row],[Ιαν]:[Δεκ]]) -> 2,625.00 €
B26: Έξοδα | C26: Ρούχα | D26: 50.00 € | E26: 75.00 € | F26: 100.00 € | G26: 75.00 € | H26: 125.00 € | I26: 75.00 € | P26: =SUM(Μηνιαία[[#This Row],[Ιαν]:[Δεκ]]) -> 500.00 €
B27: Έξοδα | C27: Ιατρικά/Οδοντιατρικά/Φάρμακα | D27: 50.00 € | E27: 10.00 € | F27: 25.00 € | G27: 25.00 € | H27: 20.00 € | I27: 70.00 € | P27: =SUM(Μηνιαία[[#This Row],[Ιαν]:[Δεκ]]) -> 200.00 €
B28: Έξοδα | C28: Λεωφορείο | D28: 30.00 € | E28: 30.00 € | F28: 30.00 € | G28: 20.00 € | H28: 30.00 € | I28: 30.00 € | P28: =SUM(Μηνιαία[[#This Row],[Ιαν]:[Δεκ]]) -> 170.00 €
B29: Έξοδα | C29: Άλλα 2 | D29: 0.00 € | E29: 0.00 € | F29: 0.00 € | G29: 0.00 € | H29: 0.00 € | I29: 0.00 € | P29: =SUM(Μηνιαία[[#This Row],[Ιαν]:[Δεκ]]) -> 0.00 €
B30: Έξοδα | C30: Άλλα 3 | D30: 0.00 € | E30: 0.00 € | F30: 0.00 € | G30: 0.00 € | H30: 0.00 € | I30: 0.00 € | P30: =SUM(Μηνιαία[[#This Row],[Ιαν]:[Δεκ]]) -> 0.00 €
B31: Έξοδα | C31: Άλλα 4 | D31: 0.00 € | E31: 0.00 € | F31: 0.00 € | G31: 0.00 € | H31: 0.00 € | I31: 0.00 € | P31: =SUM(Μηνιαία[[#This Row],[Ιαν]:[Δεκ]]) -> 0.00 €
B32: Διακριτικά | C32: Εστιατόρια | D32: 50.00 € | E32: 150.00 € | F32: 100.00 € | G32: 50.00 € | H32: 150.00 € | I32: 100.00 € | P32: =SUM(Μηνιαία[[#This Row],[Ιαν]:[Δεκ]]) -> 600.00 €
B33: Διακριτικά | C33: Δώρα | D33: 25.00 € | E33: 75.00 € | F33: 50.00 € | G33: 25.00 € | H33: 75.00 € | I33: 50.00 € | P33: =SUM(Μηνιαία[[#This Row],[Ιαν]:[Δεκ]]) -> 300.00 €
B34: Διακριτικά | C34: Ταξίδια | D34: 0.00 € | E34: 0.00 € | F34: 1,000.00 € | G34: 0.00 € | H34: 0.00 € | I34: 1,000.00 € | P34: =SUM(Μηνιαία[[#This Row],[Ιαν]:[Δεκ]]) -> 2,000.00 €
B35: Διακριτικά | C35: Διασκέδαση | D35: 50.00 € | E35: 150.00 € | F35: 100.00 € | G35: 50.00 € | H35: 150.00 € | I35: 100.00 € | P35: =SUM(Μηνιαία[[#This Row],[Ιαν]:[Δεκ]]) -> 600.00 €
B36: Διακριτικά | C36: Προσωπική φροντίδα | D36: 15.00 € | E36: 25.00 € | F36: 35.00 € | G36: 15.00 € | H36: 25.00 € | I36: 35.00 € | P36: =SUM(Μηνιαία[[#This Row],[Ιαν]:[Δεκ]]) -> 150.00 €
B37: Διακριτικά | C37: Αγορές | D37: 100.00 € | E37: 200.00 € | F37: 150.00 € | G37: 175.00 € | H37: 150.00 € | I37: 175.00 € | P37: =SUM(Μηνιαία[[#This Row],[Ιαν]:[Δεκ]]) -> 950.00 €
B38: Διακριτικά | C38: Φιλανθρωπικές οργανώσεις | D38: 50.00 € | E38: 50.00 € | F38: 50.00 € | G38: 50.00 € | H38: 50.00 € | I38: 50.00 € | P38: =SUM(Μηνιαία[[#This Row],[Ιαν]:[Δεκ]]) -> 300.00 €
B39: Διακριτικά | C39: Συμμετοχές σε λέσχες/συλλόγους | D39: 25.00 € | E39: 25.00 € | F39: 25.00 € | G39: 25.00 € | H39: 25.00 € | I39: 25.00 € | P39: =SUM(Μηνιαία[[#This Row],[Ιαν]:[Δεκ]]) -> 150.00 €
B40: Διακριτικά | C40: Εργασίες ανακαίνισης σπιτιού | D40: 400.00 € | E40: 400.00 € | F40: 400.00 € | G40: 400.00 € | H40: 400.00 € | I40: 400.00 € | P40: =SUM(Μηνιαία[[#This Row],[Ιαν]:[Δεκ]]) -> 2,400.00 €
B41: Διακριτικά | C41: Άλλα 1 | D41: 0.00 € | E41: 0.00 € | F41: 0.00 € | G41: 0.00 € | H41: 0.00 € | I41: 0.00 € | P41: =SUM(Μηνιαία[[#This Row],[Ιαν]:[Δεκ]]) -> 0.00 €
B42: Διακριτικά | C42: Άλλα 2 | D42: 0.00 € | E42: 0.00 € | F42: 0.00 € | G42: 0.00 € | H42: 0.00 € | I42: 0.00 € | P42: =SUM(Μηνιαία[[#This Row],[Ιαν]:[Δεκ]]) -> 0.00 €
B43: Αποταμιεύσεις | C43: Ταμειακά αποθέματα | D43: 416.67 € | E43: 416.67 € | F43: 416.67 € | G43: 416.67 € | H43: 416.67 € | I43: 416.67 € | P43: =SUM(Μηνιαία[[#This Row],[Ιαν]:[Δεκ]]) -> 2,500.00 €
B44: Αποταμιεύσεις | C44: Συνταξιοδοτικό κ.λπ. | D44: 1,000.00 € | E44: 1,000.00 € | F44: 1,000.00 € | G44: 1,000.00 € | H44: 1,000.00 € | I44: 1,000.00 € | P44: =SUM(Μηνιαία[[#This Row],[Ιαν]:[Δεκ]]) -> 6,000.00 €
B45: Αποταμιεύσεις | C45: Λογαριασμός ταμιευτηρίου | D45: 500.00 € | E45: 500.00 € | F45: 500.00 € | G45: 500.00 € | H45: 500.00 € | I45: 500.00 € | P45: =SUM(Μηνιαία[[#This Row],[Ιαν]:[Δεκ]]) -> 3,000.00 €
B46: Αποταμιεύσεις | C46: Άλλα 1 | D46: 0.00 € | E46: 0.00 € | F46: 0.00 € | G46: 0.00 € | H46: 0.00 € | I46: 0.00 € | P46: =SUM(Μηνιαία[[#This Row],[Ιαν]:[Δεκ]]) -> 0.00 €
B47: Αποταμιεύσεις | C47: Άλλα 2 | D47: 0.00 € | E47: 0.00 € | F47: 0.00 € | G47: 0.00 € | H47: 0.00 € | I47: 0.00 € | P47: =SUM(Μηνιαία[[#This Row],[Ιαν]:[Δεκ]]) -> 0.00 €
B48: Άθροισμα | D48: =SUMIF(Μηνιαία[Τύπος],"Έσοδα",Μηνιαία[Ιαν])-SUMIF(Μηνιαία[Τύπος],"<>Έσοδα",Μηνιαία[Ιαν]) -> 3,692.50 € | E48: =SUMIF(Μηνιαία[Τύπος],"Έσοδα",Μηνιαία[Φεβ])-SUMIF(Μηνιαία[Τύπος],"<>Έσοδα",Μηνιαία[Φεβ]) -> 3,247.50 € | F48: =SUMIF(Μηνιαία[Τύπος],"Έσοδα",Μηνιαία[Μάρ])-SUMIF(Μηνιαία[Τύπος],"<>Έσοδα",Μηνιαία[Μάρ]) -> 2,522.50 € | G48: =SUMIF(Μηνιαία[Τύπος],"Έσοδα",Μηνιαία[Απρ])-SUMIF(Μηνιαία[Τύπος],"<>Έσοδα",Μηνιαία[Απρ]) -> 3,427.50 € | H48: =SUMIF(Μηνιαία[Τύπος],"Έσοδα",Μηνιαία[Μάιος])-SUMIF(Μηνιαία[Τύπος],"<>Έσοδα",Μηνιαία[Μάιος]) -> 2,887.50 € | I48: =SUMIF(Μηνιαία[Τύπος],"Έσοδα",Μηνιαία[Ιούν])-SUMIF(Μηνιαία[Τύπος],"<>Έσοδα",Μηνιαία[Ιούν]) -> 2,602.50 € | J48: =SUMIF(Μηνιαία[Τύπος],"Έσοδα",Μηνιαία[Ιούλ])-SUMIF(Μηνιαία[Τύπος],"<>Έσοδα",Μηνιαία[Ιούλ]) -> 0.00 € | K48: =SUMIF(Μηνιαία[Τύπος],"Έσοδα",Μηνιαία[Αύγ])-SUMIF(Μηνιαία[Τύπος],"<>Έσοδα",Μηνιαία[Αύγ]) -> 0.00 € | L48: =SUMIF(Μηνιαία[Τύπος],"Έσοδα",Μηνιαία[Σεπ])-SUMIF(Μηνιαία[Τύπος],"<>Έσοδα",Μηνιαία[Σεπ]) -> 0.00 € | M48: =SUMIF(Μηνιαία[Τύπος],"Έσοδα",Μηνιαία[Οκτ])-SUMIF(Μηνιαία[Τύπος],"<>Έσοδα",Μηνιαία[Οκτ]) -> 0.00 € | N48: =SUMIF(Μηνιαία[Τύπος],"Έσοδα",Μηνιαία[Νοέμ])-SUMIF(Μηνιαία[Τύπος],"<>Έσοδα",Μηνιαία[Νοέμ]) -> 0.00 € | O48: =SUMIF(Μηνιαία[Τύπος],"Έσοδα",Μηνιαία[Δεκ])-SUMIF(Μηνιαία[Τύπος],"<>Έσοδα",Μηνιαία[Δεκ]) -> 0.00 € | P48: =SUMIF(Μηνιαία[Τύπος],"Έσοδα",Μηνιαία[Σύνολο])-SUMIF(Μηνιαία[Τύπος],"<>Έσοδα",Μηνιαία[Σύνολο]) -> 18,380.00 €

Sheet Ετήσια ταμειακή ροή
B1: ΤΑΜΕΙΑΚΗ ΡΟΗ ΓΙΑ ΠΡΟΣΩΠΙΚΗ ΧΡΗΣΗ
C2: Συνολικές ταμειακές ροές μέχρι σήμερα: | D2: =Ετήσια_Ταμειακή_Ροή_Έως_Σήμερα -> 42,250.00 € | G2: Αυτή είναι μια ετήσια εκτίμηση. Χρησιμοποιήστε αυτό το φύλλο εργασίας αν θέλετε να δείτε τα ετήσια ποσά με εκτιμώμενες μηνιαίες τιμές. Χρησιμοποιήστε φύλλα εργασίας για "Έσοδα", "Έξοδα", "Διακριτικά" και "Αποταμιεύσεις" για να εισαγάγετε στοιχεία.
B4: ΣΥΝΟΨΗ ΕΣΟΔΩΝ | F4: ΣΥΝΟΨΗ ΕΞΟΔΩΝ | J4: ΣΥΝΟΨΗ ΔΙΑΚΡΙΤΙΚΩΝ ΔΑΠΑΝΩΝ | N4: ΣΥΝΟΨΗ ΑΠΟΤΑΜΙΕΥΣΕΩΝ
B5: Ετήσιο σύνολο: | C5: =Έσοδα!C11 -> 125,000.00 € | F5: Ετήσιο σύνολο: | G5: =Δαπάνες[[#Totals],[Ετήσια ]] -> 46,500.00 € | J5: Ετήσιο σύνολο: | K5: =Διακριτικές[[#Totals],[Ετήσια ]] -> 13,250.00 € | N5: Ετήσιο σύνολο: | O5: =Αποταμιεύσεις[[#Totals],[Ετήσια ]] -> 23,000.00 €
B8: Μηνιαίο σύνολο: | C8: =Έσοδα!D11 -> 10,416.67 € | F8: Μηνιαίο σύνολο: | G8: =Δαπάνες[[#Totals],[Μηνιαία ]] -> 3,875.00 € | J8: Μηνιαίο σύνολο: | K8: =Διακριτικές[[#Totals],[Μηνιαία ]] -> 1,104.17 € | N8: Μηνιαίο σύνολο: | O8: =Ταμιευτήριο!D10 -> 1,916.67 €
R10: Ετικέτες γραμμής | S10: Ετήσιο εισόδημα | U10: Ετικέτες γραμμής | V10: Άθροισμα από Ετήσια | X10: Ετικέτες γραμμής | Y10: Άθροισμα από Ετήσια | AA10: Ετικέτες γραμμής | AB10: Άθροισμα από Ετήσια
R11: Άλλα 3 | S11: 0 € | U11: Άλλα 2 | V11: 0 € | X11: Άλλα 1 | Y11: 0 € | AA11: Άλλα 1 | AB11: 0 €
R12: Άλλα 4 | S12: 0 € | U12: Άλλα 1 | V12: 0 € | X12: Άλλα 2 | Y12: 0 € | AA12: Άλλα 2 | AB12: 0 €
R13: Άλλα 2 | S13: 0 € | U13: Απορρίμματα | V13: 150 € | X13: Συμμετοχές σε λέσχες/συλλόγους | Y13: 300 € | AA13: Αποταμιεύσεις/Επενδύσεις | AB13: 6,000 €
R14: Προμήθειες/μπόνους | S14: 5,000 € | U14: Φόρος/Τέλη οχημάτων | V14: 200 € | X14: Προσωπική φροντίδα | Y14: 300 € | AA14: Συνταξιοδοτικό κ.λπ. | AB14: 12,000 €
R15: Άλλα 1 | S15: 30,000 € | U15: Ασφάλεια | V15: 250 € | X15: Δώρα | Y15: 600 € | AA15: Ταμειακά αποθέματα | AB15: 5,000 €
R16: Μισθός | S16: 90,000 € | U16: Internet | V16: 600 € | X16: Φιλανθρωπικές οργανώσεις | Y16: 600 € | AA16: Γενικό Άθροισμα | AB16: 23,000 €
R17: Γενικό Άθροισμα | S17: 125,000 € | U17: Ιατρικά/Οδοντιατρικά/Φάρμακα | V17: 600 € | X17: Διασκέδαση | Y17: 1,200 €
U18: Τηλέφωνο | V18: 600 € | X18: Εστιατόρια | Y18: 1,200 €
U19: Αέριο | V19: 600 € | X19: Αγορές | Y19: 2,000 €
U20: Ύδρευση/Αποχέτευση | V20: 600 € | X20: Ταξίδια | Y20: 2,250 €
U21: Ηλεκτρικό | V21: 1,200 € | X21: Εργασίες ανακαίνισης σπιτιού | Y21: 4,800 €
U22: Ρούχα | V22: 1,200 € | X22: Γενικό Άθροισμα | Y22: 13,250 €
U23: Premium για άτομα με ειδικές ανάγκες | V23: 1,500 €
U24: Φόρος εισοδήματος | V24: 2,500 €
U25: Δόσεις οχήματος | V25: 4,000 €
U26: Τρόφιμα | V26: 5,000 €
U27: Ιατροφαρμακευτική περίθαλψη | V27: 12,500 €
U28: Στεγαστικό/Ενοίκιο | V28: 15,000 €
U29: Γενικό Άθροισμα | V29: 46,500 €

Sheet Έσοδα
B1: ΤΑΜΕΙΑΚΗ ΡΟΗ ΓΙΑ ΠΡΟΣΩΠΙΚΗ ΧΡΗΣΗ
C2: Συνολικές ταμειακές ροές μέχρι σήμερα: | D2: =Ετήσια_Ταμειακή_Ροή_Έως_Σήμερα -> 42,250.00 € | F2: Αυτή είναι μια ετήσια εκτίμηση. Χρησιμοποιήστε αυτό το φύλλο εργασίας εάν θέλετε να προβάλετε ετήσια ποσά με εκτιμώμενες μηνιαίες τιμές Εάν θέλετε να προσθέσετε ημερήσια στοιχεία στους Πίνακες, υπολογίστε το μηνιαίο ποσό/αξία τους και τοποθετήστε την αξία στη στήλη Ετήσια.
B4: Έσοδα | C4: Ετήσια | D4: Μηνιαία
B5: Μισθός | C5: 90,000.00 € | D5: =Έσοδα[[#This Row],[Ετήσια ]]/12 -> 7,500.00 €
B6: Προμήθειες/μπόνους | C6: 5,000.00 € | D6: =Έσοδα[[#This Row],[Ετήσια ]]/12 -> 416.67 €
B7: Άλλα 1 | C7: 30,000.00 € | D7: =Έσοδα[[#This Row],[Ετήσια ]]/12 -> 2,500.00 €
B8: Άλλα 2 | C8: 0.00 € | D8: =Έσοδα[[#This Row],[Ετήσια ]]/12 -> 0.00 €
B9: Άλλα 3 | C9: 0.00 € | D9: =Έσοδα[[#This Row],[Ετήσια ]]/12 -> 0.00 €
B10: Άλλα 4 | C10: 0.00 € | D10: =Έσοδα[[#This Row],[Ετήσια ]]/12 -> 0.00 €
B11: Άθροισμα | C11: =SUBTOTAL(109,Έσοδα[[Ετήσια ]]) -> 125,000.00 € | D11: =SUBTOTAL(109,Έσοδα[[Μηνιαία ]]) -> 10,416.67 €

Sheet Έξοδα
B1: ΤΑΜΕΙΑΚΗ ΡΟΗ ΓΙΑ ΠΡΟΣΩΠΙΚΗ ΧΡΗΣΗ
C2: Συνολικές ταμειακές ροές μέχρι σήμερα: | D2: =Ετήσια_Ταμειακή_Ροή_Έως_Σήμερα -> 42,250.00 € | F2: Αυτή είναι μια ετήσια εκτίμηση. Χρησιμοποιήστε αυτό το φύλλο εργασίας εάν θέλετε να προβάλετε ετήσια ποσά με εκτιμώμενες μηνιαίες τιμές Εάν θέλετε να προσθέσετε ημερήσια στοιχεία στους Πίνακες, υπολογίστε το μηνιαίο ποσό/αξία τους και τοποθετήστε την αξία στη στήλη Ετήσια.
B4: Έξοδα | C4: Ετήσια | D4: Μηνιαία
B5: Ιατροφαρμακευτική περίθαλψη | C5: 12,500.00 € | D5: =Δαπάνες[[#This Row],[Ετήσια ]]/12 -> 1,041.67 €
B6: Φόρος εισοδήματος | C6: 2,500.00 € | D6: =Δαπάνες[[#This Row],[Ετήσια ]]/12 -> 208.33 €
B7: Φόρος/Τέλη οχημάτων | C7: 200.00 € | D7: =Δαπάνες[[#This Row],[Ετήσια ]]/12 -> 16.67 €
B8: Δόσεις οχήματος | C8: 4,000.00 € | D8: =Δαπάνες[[#This Row],[Ετήσια ]]/12 -> 333.33 €
B9: Στεγαστικό/Ενοίκιο | C9: 15,000.00 € | D9: =Δαπάνες[[#This Row],[Ετήσια ]]/12 -> 1,250.00 €
B10: Ασφάλεια | C10: 250.00 € | D10: =Δαπάνες[[#This Row],[Ετήσια ]]/12 -> 20.83 €
B11: Ηλεκτρικό | C11: 1,200.00 € | D11: =Δαπάνες[[#This Row],[Ετήσια ]]/12 -> 100.00 €
B12: Αέριο | C12: 600.00 € | D12: =Δαπάνες[[#This Row],[Ετήσια ]]/12 -> 50.00 €
B13: Ύδρευση/Αποχέτευση | C13: 600.00 € | D13: =Δαπάνες[[#This Row],[Ετήσια ]]/12 -> 50.00 €
B14: Απορρίμματα | C14: 150.00 € | D14: =Δαπάνες[[#This Row],[Ετήσια ]]/12 -> 12.50 €
B15: Τηλέφωνο | C15: 600.00 € | D15: =Δαπάνες[[#This Row],[Ετήσια ]]/12 -> 50.00 €
B16: Internet | C16: 600.00 € | D16: =Δαπάνες[[#This Row],[Ετήσια ]]/12 -> 50.00 €
B17: Premium για άτομα με ειδικές ανάγκες | C17: 1,500.00 € | D17: =Δαπάνες[[#This Row],[Ετήσια ]]/12 -> 125.00 €
B18: Τρόφιμα | C18: 5,000.00 € | D18: =Δαπάνες[[#This Row],[Ετήσια ]]/12 -> 416.67 €
B19: Ρούχα | C19: 1,200.00 € | D19: =Δαπάνες[[#This Row],[Ετήσια ]]/12 -> 100.00 €
B20: Ιατρικά/Οδοντιατρικά/Φάρμακα | C20: 600.00 € | D20: =Δαπάνες[[#This Row],[Ετήσια ]]/12 -> 50.00 €
B21: Άλλα 1 | C21: 0.00 € | D21: =Δαπάνες[[#This Row],[Ετήσια ]]/12 -> 0.00 €
B22: Άλλα 2 | C22: 0.00 € | D22: =Δαπάνες[[#This Row],[Ετήσια ]]/12 -> 0.00 €
B23: Άθροισμα | C23: =SUBTOTAL(109,Δαπάνες[[Ετήσια ]]) -> 46,500.00 € | D23: =SUBTOTAL(109,Δαπάνες[[Μηνιαία ]]) -> 3,875.00 €

Sheet Διακριτικά
B1: ΤΑΜΕΙΑΚΗ ΡΟΗ ΓΙΑ ΠΡΟΣΩΠΙΚΗ ΧΡΗΣΗ
C2: Συνολικές ταμειακές ροές μέχρι σήμερα: | D2: =Ετήσια_Ταμειακή_Ροή_Έως_Σήμερα -> 42,250.00 € | F2: Αυτή είναι μια ετήσια εκτίμηση. Χρησιμοποιήστε αυτό το φύλλο εργασίας εάν θέλετε να προβάλετε ετήσια ποσά με εκτιμώμενες μηνιαίες τιμές Εάν θέλετε να προσθέσετε ημερήσια στοιχεία στους Πίνακες, υπολογίστε το μηνιαίο ποσό/αξία τους και τοποθετήστε την αξία στη στήλη Ετήσια.
B4: Διακριτικά | C4: Ετήσια | D4: Μηνιαία
B5: Εστιατόρια | C5: 1,200.00 € | D5: =Διακριτικές[[#This Row],[Ετήσια ]]/12 -> 100.00 €
B6: Δώρα | C6: 600.00 € | D6: =Διακριτικές[[#This Row],[Ετήσια ]]/12 -> 50.00 €
B7: Ταξίδια | C7: 2,250.00 € | D7: =Διακριτικές[[#This Row],[Ετήσια ]]/12 -> 187.50 €
B8: Διασκέδαση | C8: 1,200.00 € | D8: =Διακριτικές[[#This Row],[Ετήσια ]]/12 -> 100.00 €
B9: Προσωπική φροντίδα | C9: 300.00 € | D9: =Διακριτικές[[#This Row],[Ετήσια ]]/12 -> 25.00 €
B10: Αγορές | C10: 2,000.00 € | D10: =Διακριτικές[[#This Row],[Ετήσια ]]/12 -> 166.67 €
B11: Φιλανθρωπικές οργανώσεις | C11: 600.00 € | D11: =Διακριτικές[[#This Row],[Ετήσια ]]/12 -> 50.00 €
B12: Συμμετοχές σε λέσχες/συλλόγους | C12: 300.00 € | D12: =Διακριτικές[[#This Row],[Ετήσια ]]/12 -> 25.00 €
B13: Εργασίες ανακαίνισης σπιτιού | C13: 4,800.00 € | D13: =Διακριτικές[[#This Row],[Ετήσια ]]/12 -> 400.00 €
B14: Άλλα 1 | C14: 0.00 € | D14: =Διακριτικές[[#This Row],[Ετήσια ]]/12 -> 0.00 €
B15: Άλλα 2 | C15: 0.00 € | D15: =Διακριτικές[[#This Row],[Ετήσια ]]/12 -> 0.00 €
B16: Άθροισμα | C16: =SUBTOTAL(109,Διακριτικές[[Ετήσια ]]) -> 13,250.00 € | D16: =SUBTOTAL(109,Διακριτικές[[Μηνιαία ]]) -> 1,104.17 €

Sheet Ταμιευτήριο
B1: ΤΑΜΕΙΑΚΗ ΡΟΗ ΓΙΑ ΠΡΟΣΩΠΙΚΗ ΧΡΗΣΗ
C2: Συνολικές ταμειακές ροές μέχρι σήμερα: | D2: =Ετήσια_Ταμειακή_Ροή_Έως_Σήμερα -> 42,250.00 € | F2: Αυτή είναι μια ετήσια εκτίμηση. Χρησιμοποιήστε αυτό το φύλλο εργασίας εάν θέλετε να προβάλετε ετήσια ποσά με εκτιμώμενες μηνιαίες τιμές Εάν θέλετε να προσθέσετε ημερήσια στοιχεία στους Πίνακες, υπολογίστε το μηνιαίο ποσό/αξία τους και τοποθετήστε την αξία στη στήλη Ετήσια.
B4: Αποταμιεύσεις | C4: Ετήσια | D4: Μηνιαία
B5: Ταμειακά αποθέματα | C5: 5,000.00 € | D5: =Αποταμιεύσεις[[#This Row],[Ετήσια ]]/12 -> 416.67 €
B6: Συνταξιοδοτικό κ.λπ. | C6: 12,000.00 € | D6: =Αποταμιεύσεις[[#This Row],[Ετήσια ]]/12 -> 1,000.00 €
B7: Αποταμιεύσεις/Επενδύσεις | C7: 6,000.00 € | D7: =Αποταμιεύσεις[[#This Row],[Ετήσια ]]/12 -> 500.00 €
B8: Άλλα 1 | C8: 0.00 € | D8: =Αποταμιεύσεις[[#This Row],[Ετήσια ]]/12 -> 0.00 €
B9: Άλλα 2 | C9: 0.00 € | D9: =Αποταμιεύσεις[[#This Row],[Ετήσια ]]/12 -> 0.00 €
B10: Άθροισμα | C10: =SUBTOTAL(109,Αποταμιεύσεις[[Ετήσια ]]) -> 23,000.00 € | D10: =SUBTOTAL(109,Αποταμιεύσεις[[Μηνιαία ]]) -> 1,916.67 €
